bitfinex/quotes_SOLUSD_20250301
["timestamp","ask_amount","ask_price","bid_price","bid_amount"]
[1740830357077,6.53,140.78,140.77,0.063]
[1740830360067,31.57254886,140.78,140.77,0.063]
[1740830367474,18.64964886,140.77,140.72,0.063]
[1740830367857,80.7,140.76,140.72,0.063]
[1740830368579,99.34964886,140.75,140.72,0.063]
[1740830368766,105.74394886,140.75,140.72,0.063]
[1740830370073,80.7,140.74,140.72,0.063]
[1740830370375,87.2,140.73,140.72,0.063]
[1740830372392,93.5952,140.73,140.72,0.063]
[1740830374380,31.54484886,140.73,140.72,0.063]
[1740830379162,25.14964886,140.73,140.72,0.063]
[1740830381193,31.54484886,140.73,140.72,0.063]
[1740830383989,25.14964886,140.73,140.72,0.063]
[1740830384565,31.54484886,140.73,140.72,0.063]
[1740830387186,25.14964886,140.73,140.72,0.063]
[1740830389396,6.5,140.73,140.72,0.063]
[1740830389890,0.03,140.77,140.72,0.063]
[1740830390085,6.5,140.76,140.73,6.1113]
[1740830390393,87.2,140.76,140.73,6.1113]
[1740830390688,80.7,140.75,140.73,6.1113]
[1740830390893,6.5,140.74,140.73,6.1113]
[1740830391394,6.5,140.74,140.73,7.7527]
[1740830391894,6.5,140.74,140.73,14.1479]
[1740830394685,80.73,140.77,140.73,14.1479]
[1740830394877,87.2,140.76,140.73,14.1479]
[1740830397108,0.03,140.77,140.75,6.3885]
[1740830397498,0.03,140.77,140.76,1.6097]
[1740830398387,0.03,140.77,140.76,8.0035]
[1740830402297,6.48,140.81,140.76,10.0035]
[1740830402508,6.48,140.81,140.76,23.9881]
[1740830402692,87.18,140.83,140.76,23.9881]
[1740830403309,87.18,140.83,140.77,8.3885]
[1740830403482,87.18,140.83,140.77,6.3885]
[1740830403684,87.18,140.83,140.78,2.0]
[1740830403992,80.7,140.85,140.8,7.9982]
[1740830404193,80.7,140.85,140.8,9.9982]
[1740830404387,0.063,140.87,140.84,7.9982]
[1740830404582,0.063,140.87,140.84,9.9982]
[1740830405283,0.063,140.87,140.84,11.9982]
[1740830405781,0.063,140.87,140.86,20.0]
[1740830406015,0.03,140.88,140.87,4.0]
[1740830406195,0.063,140.91,140.9,22.0]
[1740830406514,0.063,140.91,140.9,10.3885]
[1740830406994,0.03,140.92,140.91,4.0]
[1740830407177,0.01333845,140.94,140.93,22.0]
[1740830407382,0.01333845,140.94,140.93,103.64964886]
[1740830407603,3.845e-05,140.95,140.94,22.64964886]
[1740830407783,6.51,141.01,140.95,5.6097]
[1740830408114,6.51,141.01,140.95,7.9949]
[1740830408277,80.7,141.0,140.95,7.9949]
[1740830409406,80.7,141.0,140.94,6.3885]
[1740830410497,80.7,141.0,140.94,12.7741]
[1740830410698,80.7,141.0,140.94,6.3885]
[1740830411390,6.543,140.96,140.94,6.3885]
[1740830411590,80.7,140.95,140.9,6.3885]
[1740830412189,80.7,140.95,140.9,12.7759]
[1740830413783,80.7,140.95,140.9,6.3885]
[1740830413986,80.7,140.95,140.89,6.3878]
[1740830414514,80.7,140.95,140.88,6.3884]
[1740830414813,87.0852,140.95,140.88,6.3884]
[1740830415108,80.7,140.95,140.88,6.3884]
[1740830415611,80.7,140.95,140.88,8.3884]
[1740830416007,80.7,140.94,140.88,8.3884]
[1740830416215,80.7,140.94,140.88,26.3594]
[1740830416590,80.7,140.94,140.88,24.3594]
[1740830416791,80.7,140.94,140.88,26.3594]
[1740830417699,80.7,140.94,140.89,2.0]
[1740830418312,80.7,140.94,140.88,26.3594]
[1740830419001,55.97008588,140.94,140.88,26.3594]
[1740830419694,55.97008588,140.94,140.88,22.3594]
[1740830419890,55.97008588,140.94,140.88,24.3594]
[1740830421508,55.97008588,140.94,140.88,22.3594]
[1740830421904,55.97008588,140.94,140.88,24.3594]
[1740830423218,55.97008588,140.94,140.88,22.3594]
[1740830423514,55.97008588,140.93,140.88,6.3884]
[1740830423696,55.97008588,140.92,140.86,12.6607]
[1740830423892,6.48,140.91,140.86,12.6607]
[1740830424099,55.97008588,140.9,140.84,6.3902]
[1740830424309,6.48,140.91,140.84,6.3902]
[1740830424310,55.97008588,140.89,140.84,6.3902]
[1740830425111,55.97008588,140.89,140.87,20.0]
[1740830425409,6.48,140.91,140.87,20.0]
[1740830427202,6.48,140.91,140.88,6.3884]
[1740830429098,6.48,140.91,140.87,6.3888]
[1740830430318,6.51,140.95,140.88,2.0]
[1740830430622,0.03,140.95,140.91,26.2428]
[1740830431202,0.03,140.95,140.92,6.3866]
[1740830431403,0.03,140.95,140.91,32.6297]
[1740830431607,0.03,140.95,140.91,12.6297]
[1740830433335,0.03,140.95,140.91,6.2428]
[1740830433637,0.03,140.95,140.89,6.3878]
[1740830435103,0.03,140.95,140.88,0.063]
[1740830435302,0.03,140.95,140.88,6.4514]
[1740830435303,55.97008588,140.94,140.88,6.4514]
[1740830439424,0.03,140.95,140.91,24.0]
[1740830439808,0.03,140.95,140.92,20.0]
[1740830440517,0.03,140.95,140.93,20.0]
[1740830440725,0.03,140.95,140.94,6.3856]
[1740830442638,0.03,140.95,140.93,6.3861]
[1740830444729,0.03,140.95,140.94,20.0]
[1740830446133,0.03,140.95,140.94,26.3856]
[1740830448111,0.063,140.96,140.94,26.3856]
[1740830452616,0.063,140.96,140.94,6.3856]
[1740830452821,0.063,140.96,140.92,6.3866]
[1740830453139,6.46,140.95,140.92,6.3866]
[1740830453828,6.46,140.95,140.91,0.063]
[1740830454128,62.43008588,140.95,140.91,0.063]
[1740830454824,55.97008588,140.94,140.91,0.063]
[1740830457638,55.97008588,140.93,140.91,0.063]
[1740830459342,55.97008588,140.93,140.91,6.45]
[1740830460338,55.97008588,140.93,140.91,0.063]
[1740830461928,57.54818588,140.93,140.91,0.063]
[1740830463848,55.97008588,140.92,140.91,0.063]
[1740830466149,62.35668588,140.92,140.91,0.063]
[1740830466644,25.03624886,140.92,140.91,0.063]
[1740830467341,1.5781,140.93,140.91,0.063]
[1740830467546,6.49,140.95,140.91,0.063]
[1740830470837,0.03,140.95,140.91,0.063]
[1740830471261,0.03,140.95,140.93,20.0]
[1740830471575,0.03,140.95,140.94,6.3856]
[1740830472754,0.03,140.95,140.92,15.9663]
[1740830472954,0.03,140.95,140.91,6.45]
[1740830473168,80.73,140.95,140.91,6.45]
[1740830474762,80.73,140.95,140.91,0.063]
[1740830476169,80.73,140.95,140.92,20.0]
[1740830476376,0.03,140.95,140.92,22.0]
[1740830477193,0.03,140.95,140.93,6.3861]
[1740830477969,0.03,140.95,140.92,26.3864]
[1740830478970,80.73,140.95,140.92,26.3864]
[1740830479794,100.94284886,140.94,140.91,0.063]
[1740830479970,6.46,140.93,140.91,0.063]
[1740830481192,6.46,140.93,140.91,6.45]
[1740830481388,6.46,140.93,140.91,0.063]
[1740830482690,0.03,140.95,140.91,0.063]
[1740830483832,0.03,140.95,140.91,6.45]
[1740830488481,80.7,140.94,140.91,6.45]
[1740830488884,80.7,140.94,140.91,0.063]
[1740830489703,80.7,140.93,140.91,0.063]
[1740830490001,87.16,140.92,140.91,0.063]
[1740830490203,25.10964886,140.92,140.91,0.063]
[1740830493181,31.49624886,140.92,140.91,0.063]
[1740830494789,25.10964886,140.92,140.91,0.063]
[1740830497614,31.49624886,140.92,140.91,0.063]
[1740830513364,31.49624886,140.92,140.88,0.063]
[1740830513365,38.64964886,140.89,140.88,0.063]
[1740830513977,44.31454886,140.89,140.88,0.0001]
[1740830514176,50.033316,140.89,140.88,0.0001]
[1740830514382,20.0,140.85,140.78,6.3308]
[1740830514583,18.64964886,140.83,140.78,6.3308]
[1740830515963,18.64964886,140.83,140.78,12.7236]
[1740830516486,18.64964886,140.83,140.78,6.3308]
[1740830516688,25.04034886,140.83,140.78,6.3308]
[1740830516986,25.04034886,140.83,140.77,0.063]
[1740830517285,80.7,140.82,140.77,0.063]
[1740830517484,18.64964886,140.8,140.77,0.063]
[1740830517682,6.46,140.79,140.77,0.063]
[1740830517998,80.7,140.78,140.77,0.063]
[1740830520587,18.64964886,140.83,140.77,0.063]
[1740830520588,6.46,140.8,140.77,0.063]
[1740830520796,80.7,140.82,140.79,20.0]
[1740830521083,6.46,140.83,140.8,8.0195]
[1740830522077,6.46,140.83,140.81,6.3915]
[1740830523894,18.64964886,140.78,140.77,0.063]
[1740830524097,25.10964886,140.78,140.77,0.063]
[1740830525478,6.46,140.78,140.77,0.063]
[1740830527195,20.0,140.79,140.77,0.063]
[1740830527389,6.46,140.78,140.77,0.063]
[1740830528176,31.50254886,140.78,140.77,0.063]
[1740830533296,33.50254886,140.78,140.77,0.063]
[1740830533517,31.50254886,140.78,140.77,0.063]
[1740830534597,33.50254886,140.78,140.77,0.063]
[1740830539526,35.50254886,140.78,140.77,0.063]
[1740830540504,33.50254886,140.78,140.77,0.063]
[1740830541221,35.50254886,140.78,140.77,0.063]
[1740830541396,20.64964886,140.77,140.76,0.063]
[1740830541800,22.64964886,140.77,140.76,0.0001]
[1740830541994,23.95321074,140.77,140.76,0.0001]
[1740830543719,22.64964886,140.76,140.75,0.0001]
[1740830545223,24.24474886,140.76,140.75,0.0001]
[1740830545619,28.63854886,140.76,140.75,0.0001]
[1740830547908,25.04344886,140.76,140.75,0.0001]
[1740830550424,27.04344886,140.76,140.75,0.0001]
[1740830550628,25.04344886,140.76,140.75,0.0001]
[1740830557230,6.46,140.76,140.75,0.0001]
[1740830557837,25.10964886,140.76,140.75,0.0001]
[1740830566845,31.50344886,140.76,140.75,0.0001]
[1740830567527,33.50344886,140.76,140.75,0.0001]
[1740830567940,35.50344886,140.76,140.75,0.0001]
[1740830568635,33.50344886,140.76,140.75,0.0001]
[1740830568836,35.50344886,140.76,140.75,0.0001]
[1740830572255,6.3947,140.74,140.73,0.063]
[1740830572462,25.04434886,140.74,140.73,0.063]
[1740830576042,28.59229348,140.74,140.73,0.063]
[1740830578854,18.64964886,140.74,140.73,0.063]
[1740830579760,38.64964886,140.74,140.73,0.063]
[1740830581054,45.10964886,140.74,140.73,0.063]
[1740830582867,51.50434886,140.74,140.73,0.063]
[1740830585745,33.50434886,140.74,140.73,0.063]
[1740830587573,44.80395619,140.74,140.73,0.0001]
[1740830587773,46.10844802,140.74,140.73,0.0001]
[1740830588452,42.10844802,140.74,140.73,0.0001]
[1740830588861,36.43300233,140.74,140.73,0.0001]
[1740830590166,32.80884069,140.74,140.73,0.0001]
[1740830590367,31.50434886,140.74,140.73,0.0001]
[1740830597389,35.12270565,140.74,140.73,0.0001]
[1740830598872,37.12270565,140.74,140.73,0.0001]
[1740830600078,39.12270565,140.74,140.73,0.0001]
[1740830600665,35.12270565,140.74,140.73,0.0001]
[1740830601168,39.12270565,140.74,140.73,0.0001]
[1740830601362,37.12270565,140.74,140.73,0.0001]
[1740830601569,35.12270565,140.74,140.73,0.0001]
[1740830602288,31.50434886,140.74,140.73,0.0001]
[1740830603788,0.03,140.75,140.73,6.094]
[1740830603968,6.46,140.74,140.73,6.094]
[1740830604583,25.10964886,140.74,140.73,6.094]
[1740830606792,6.46,140.74,140.73,6.094]
[1740830607372,6.46,140.74,140.73,12.4892]
[1740830608076,0.03,140.75,140.74,1.587]
[1740830608290,0.03,140.76,140.75,6.0939]
[1740830608679,6.46,140.78,140.75,6.0939]
[1740830609896,6.46,140.78,140.76,6.3938]
[1740830610483,80.7,140.8,140.76,6.3938]
[1740830610793,6.46,140.79,140.76,6.3938]
[1740830618683,6.49,140.79,140.76,6.3938]
[1740830620018,80.7,140.84,140.77,7.824]
[1740830620207,6.46,140.83,140.78,6.2249]
[1740830620386,6.46,140.83,140.79,1.5991]
[1740830620587,6.46,140.83,140.8,6.2249]
[1740830621306,80.7,140.84,140.8,6.2249]
[1740830622113,6.46,140.85,140.81,6.3915]
[1740830626325,87.16,140.85,140.8,6.2249]
[1740830626496,99.34964886,140.84,140.8,6.2249]
[1740830626692,99.34964886,140.84,140.77,6.2249]
[1740830626896,18.64964886,140.82,140.77,6.2249]
[1740830627794,25.04074886,140.82,140.77,6.2249]
[1740830627994,80.7,140.81,140.77,6.2249]
[1740830628193,87.14,140.8,140.77,6.2249]
[1740830628490,80.7,140.79,140.73,6.225]
[1740830628692,80.7,140.78,140.73,6.225]
[1740830629919,6.3934,140.77,140.73,6.225]
[1740830630232,18.64964886,140.75,140.73,0.0001]
[1740830630410,105.78964886,140.74,140.73,0.0001]
[1740830633323,25.08964886,140.74,140.73,0.0001]
[1740830635221,6.44,140.74,140.73,0.0001]
[1740830637421,6.44,140.74,140.73,6.3953]
[1740830638133,6.44,140.74,140.73,0.0001]
[1740830643935,6.44,140.74,140.73,7.7779]
[1740830644436,80.7,140.75,140.73,7.7779]
[1740830644810,6.44,140.77,140.73,7.7779]
[1740830645020,18.64964886,140.81,140.73,7.7779]
[1740830645210,87.14,140.8,140.73,7.7779]
[1740830645937,18.64964886,140.79,140.73,7.7779]
[1740830646237,18.64964886,140.79,140.74,6.3947]
[1740830646838,80.7,140.8,140.74,22.3816]
[1740830647124,80.7,140.8,140.74,6.3947]
[1740830647125,18.64964886,140.79,140.74,6.3947]
[1740830648017,18.64964886,140.77,140.73,7.7779]
[1740830648218,87.14,140.76,140.73,7.7779]
[1740830648413,80.7,140.75,140.73,0.0001]
[1740830648743,18.64964886,140.74,140.73,0.0001]
[1740830651827,6.44,140.76,140.73,0.0001]
[1740830652845,6.44,140.77,140.73,20.0001]
[1740830653729,6.44,140.77,140.75,8.1545]
[1740830655727,6.44,140.77,140.76,6.3938]
[1740830663854,6.44,140.77,140.73,0.0001]
[1740830664155,6.44,140.77,140.74,6.3946]
[1740830664521,6.44,140.77,140.73,6.3951]
[1740830664928,99.34964886,140.76,140.73,0.0001]
[1740830668141,99.34964886,140.76,140.75,0.063]
[1740830668547,18.64964886,140.76,140.75,0.063]
[1740830668939,25.04344886,140.76,140.75,0.063]
[1740830672047,27.04344886,140.76,140.75,0.063]
[1740830672424,32.78612922,140.76,140.75,0.063]
[1740830675050,27.04344886,140.76,140.75,0.063]
[1740830676548,42.64964886,140.74,140.73,0.0001]
[1740830676729,20.0,140.7,140.66,0.03]
[1740830677045,18.64964886,140.68,140.66,0.03]
[1740830680729,80.7,140.67,140.66,0.03]
[1740830680937,18.64964886,140.68,140.66,0.03]
[1740830687250,25.04714886,140.68,140.66,0.03]
[1740830687656,28.58554916,140.68,140.66,0.03]
[1740830687846,22.18804916,140.68,140.66,0.03]
[1740830688356,28.58564916,140.68,140.66,0.03]
[1740830688744,4.0,140.66,140.64,0.063]
[1740830688934,20.0,140.65,140.62,0.063]
[1740830689136,6.44,140.64,140.62,0.063]
[1740830689337,18.64964886,140.63,140.62,0.063]
[1740830694253,6.44,140.64,140.62,1.7175]
[1740830695560,6.44,140.64,140.63,6.3997]
[1740830700869,6.44,140.64,140.62,1.7175]
[1740830701174,99.34964886,140.63,140.62,0.063]
[1740830704467,18.64964886,140.63,140.62,0.063]
[1740830707265,6.44,140.64,140.62,0.063]
[1740830710256,87.14,140.67,140.62,6.382]
[1740830711356,87.14,140.67,140.63,6.3997]
[1740830713270,80.7,140.67,140.63,6.3997]
[1740830714169,80.7,140.67,140.63,22.3991]
[1740830714372,80.763,140.67,140.63,22.3991]
[1740830714755,80.763,140.67,140.64,1.6665]
[1740830715368,0.063,140.67,140.65,6.4779]
[1740830716474,0.063,140.67,140.66,6.3984]
[1740830716669,80.763,140.73,140.66,22.3944]
[1740830716876,80.763,140.73,140.67,8.1444]
[1740830718175,0.063,140.73,140.69,7.6448]
[1740830718373,0.063,140.73,140.7,6.3965]
[1740830722376,0.063,140.73,140.72,20.0]
[1740830722880,0.063,140.73,140.72,26.0748]
[1740830723871,0.063,140.73,140.72,107.0748]
[1740830724180,0.03,140.79,140.72,110.6448]
[1740830725080,0.03,140.79,140.73,6.3952]
[1740830727487,0.03,140.79,140.72,115.0402]
[1740830728068,80.7,140.78,140.72,34.0402]
[1740830729384,80.7,140.78,140.72,27.6448]
[1740830730293,99.34964886,140.77,140.72,7.6448]
[1740830730477,99.34964886,140.77,140.69,6.0748]
[1740830730785,18.64964886,140.75,140.69,6.0748]
[1740830730987,6.44,140.74,140.69,6.0748]
[1740830731192,80.7,140.73,140.69,6.0748]
[1740830732878,80.7,140.73,140.69,12.4717]
[1740830734199,80.7,140.73,140.69,6.0748]
[1740830735178,80.7,140.73,140.69,12.4717]
[1740830736898,6.44,140.74,140.69,12.4717]
[1740830738878,6.44,140.74,140.69,12.5347]
[1740830739102,0.03,140.73,140.69,12.5347]
[1740830739796,0.03,140.73,140.69,0.063]
[1740830739797,18.64964886,140.71,140.69,0.063]
[1740830740099,99.34964886,140.71,140.69,0.063]
[1740830742374,105.74584886,140.71,140.69,0.063]
[1740830742796,100.88984886,140.7,140.69,0.063]
[1740830743390,20.18984886,140.7,140.69,0.063]
[1740830743589,24.18984886,140.7,140.69,0.063]
[1740830743793,30.58634886,140.7,140.69,0.063]
[1740830744196,30.58634886,140.7,140.69,0.0001]
[1740830744403,18.64964886,140.66,140.65,0.063]
[1740830744591,25.08964886,140.66,140.65,0.063]
[1740830745591,27.08964886,140.66,140.65,0.063]
[1740830746918,25.08964886,140.66,140.65,0.063]
[1740830747104,31.48804886,140.66,140.65,0.063]
[1740830747293,33.48804886,140.66,140.65,0.063]
[1740830747811,31.48804886,140.66,140.65,0.063]
[1740830748512,33.48804886,140.66,140.65,0.063]
[1740830749094,37.12677544,140.66,140.65,0.063]
[1740830749301,40.66697544,140.66,140.65,0.063]
[1740830749702,42.64964886,140.63,140.62,0.063]
[1740830750708,49.04934886,140.63,140.62,0.063]
[1740830750910,22.64964886,140.62,140.58,0.03]
[1740830751091,20.64964886,140.58,140.54,0.063]
[1740830751787,22.64964886,140.58,140.54,0.063]
[1740830753412,87.1025,140.57,140.54,0.063]
[1740830753714,105.78964886,140.56,140.54,0.063]
[1740830757811,99.34964886,140.55,140.54,0.063]
[1740830759923,80.7,140.55,140.54,0.063]
[1740830761703,80.7,140.6,140.54,0.063]
[1740830761913,87.14,140.59,140.55,7.9199]
[1740830763215,87.14,140.59,140.55,6.2744]
[1740830766833,99.34964886,140.58,140.54,0.063]
[1740830767020,80.7,140.57,140.54,0.063]
[1740830767614,80.7,140.57,140.54,6.4667]
[1740830768010,80.7,140.57,140.54,0.063]
[1740830768229,87.14,140.59,140.54,0.063]
[1740830775431,87.203,140.59,140.54,0.063]
[1740830775637,0.063,140.59,140.54,0.063]
[1740830775840,6.44,140.58,140.54,0.063]
[1740830781141,0.063,140.59,140.55,8.2616]
[1740830781952,0.063,140.59,140.56,22.4102]
[1740830787847,0.063,140.59,140.58,20.0]
[1740830788031,0.063,140.59,140.58,26.402]
[1740830795936,0.0001,140.59,140.58,26.402]
[1740830796152,0.0001,140.59,140.58,28.402]
[1740830796561,0.0001,140.59,140.58,34.4854]
[1740830796860,0.0001,140.59,140.58,36.0853]
[1740830797051,0.0001,140.59,140.58,119.0853]
[1740830797946,0.0001,140.59,140.58,120.57834181]
[1740830798138,0.0001,140.59,140.58,119.0853]
[1740830798339,0.0001,140.59,140.58,117.0853]
[1740830798540,0.0001,140.59,140.58,119.0853]
[1740830798955,6.44,140.64,140.59,2.0]
[1740830799146,6.44,140.64,140.62,20.0]
[1740830800738,6.44,140.64,140.63,6.3997]
[1740830801359,100.98794886,140.69,140.63,6.3997]
[1740830801547,6.44,140.68,140.63,6.3997]
[1740830803860,6.44,140.68,140.62,22.4007]
[1740830804942,80.763,140.69,140.63,7.6833]
[1740830805142,0.063,140.69,140.66,20.0]
[1740830805965,0.063,140.69,140.67,6.3979]
[1740830808566,0.063,140.69,140.65,6.3987]
[1740830808750,0.063,140.69,140.64,87.3991]
[1740830808950,80.7,140.68,140.61,6.4006]
[1740830809947,99.34964886,140.67,140.59,7.6833]
[1740830810148,18.64964886,140.65,140.59,6.0834]
[1740830810372,99.34964886,140.65,140.58,0.03]
[1740830810751,105.74874886,140.65,140.58,0.03]
[1740830811371,99.34964886,140.65,140.58,0.03]
[1740830814645,80.7,140.65,140.58,81.03]
[1740830815065,80.7,140.65,140.58,83.03]
[1740830816851,80.7,140.65,140.59,22.4054]
[1740830819778,6.44,140.66,140.59,22.4054]
[1740830820774,6.44,140.66,140.59,6.4015]
[1740830820963,18.64964886,140.65,140.59,6.4015]
[1740830821162,18.64964886,140.65,140.59,6.4315]
[1740830821358,18.64964886,140.65,140.59,0.03]
[1740830821561,26.92104886,140.63,140.59,0.03]
[1740830822854,20.28864886,140.63,140.59,0.03]
[1740830823672,93.7724,140.66,140.59,20.03]
[1740830823971,6.44,140.65,140.59,0.03]
[1740830824983,6.44,140.65,140.59,6.4315]
[1740830825394,25.08964886,140.65,140.59,6.4315]
[1740830830884,6.44,140.65,140.59,22.4354]
[1740830831871,6.44,140.65,140.59,105.4354]
[1740830833363,6.44,140.65,140.59,103.4354]
[1740830833562,6.44,140.65,140.59,105.4354]
[1740830833784,6.503,140.65,140.59,105.4354]
[1740830834387,6.503,140.65,140.59,103.4354]
[1740830835461,6.503,140.65,140.59,87.4315]
[1740830835698,18.64964886,140.64,140.59,6.4315]
[1740830836785,87.203,140.65,140.59,0.03]
[1740830838890,18.64964886,140.64,140.59,0.03]
[1740830839576,18.64964886,140.62,140.59,0.03]
[1740830839892,80.7,140.62,140.59,0.03]
[1740830840095,18.64964886,140.61,140.59,0.03]
[1740830840386,6.44,140.6,140.59,0.03]
[1740830843480,80.7,140.62,140.59,0.03]
[1740830843796,6.44,140.62,140.59,0.03]
[1740830847393,6.44,140.62,140.59,1.6632]
[1740830848494,6.44,140.62,140.6,6.4011]
[1740830864715,6.44,140.62,140.6,87.4011]
[1740830866246,0.063,140.64,140.63,20.0]
[1740830866737,0.063,140.69,140.67,20.0]
[1740830867909,0.0001,140.69,140.67,103.0]
[1740830868114,0.0001,140.69,140.68,8.3974]
[1740830868840,0.0001,140.69,140.68,6.3974]
[1740830878123,0.0001,140.69,140.67,107.3978]
[1740830878834,6.4201,140.69,140.65,6.3988]
[1740830879234,6.4201,140.69,140.64,6.3992]
[1740830880145,6.4201,140.69,140.62,15.9997]
[1740830880325,6.4201,140.69,140.65,20.0]
[1740830881449,6.4201,140.69,140.65,101.0]
[1740830881824,6.4201,140.69,140.65,103.0]
[1740830882025,6.4201,140.69,140.68,20.0]
[1740830882326,6.4201,140.69,140.68,26.3974]
[1740830883547,0.0001,140.69,140.68,26.3974]
[1740830886650,0.0001,140.69,140.68,28.3974]
[1740830886826,0.0001,140.69,140.68,109.3974]
[1740830887644,0.0001,140.69,140.68,266.04704886]
[1740830887834,0.063,140.74,140.7,2.0]
[1740830888038,0.063,140.74,140.73,20.0]
[1740830889253,6.42,140.76,140.73,20.0]
[1740830889544,0.063,140.77,140.75,20.0]
[1740830889753,0.03,140.79,140.77,20.0]
[1740830890243,0.063,140.8,140.77,20.0]
[1740830890453,0.0001,140.8,140.79,20.0]
[1740830891632,0.0001,140.8,140.79,107.3924]
[1740830892237,0.0001,140.8,140.79,113.5197]
[1740830893550,0.0001,140.8,140.79,115.5197]
[1740830894251,0.0001,140.8,140.75,8.6148]
[1740830894437,0.0001,140.8,140.76,6.3938]
[1740830894639,0.0001,140.8,140.79,20.0]
[1740830895557,0.0001,140.8,140.76,87.3938]
[1740830896054,0.0001,140.8,140.76,6.3938]
[1740830896276,0.0001,140.8,140.75,87.3942]
[1740830899848,0.0001,140.8,140.75,6.3942]
[1740830899849,1.6413,140.79,140.75,6.3942]
[1740830900036,6.42,140.78,140.75,6.3942]
[1740830900661,6.42,140.78,140.76,20.0]
[1740830902057,6.42,140.78,140.76,26.3935]
[1740830903947,0.0001,140.8,140.76,107.3935]
[1740830904559,0.0001,140.8,140.77,20.64964886]
[1740830904759,0.0001,140.8,140.78,8.4074]
[1740830905342,0.0001,140.8,140.79,20.64964886]
[1740830905542,0.0001,140.8,140.79,18.64964886]
[1740830906162,0.0001,140.8,140.79,20.64964886]
[1740830906363,0.0001,140.8,140.79,25.04204886]
[1740830906745,0.0001,140.8,140.79,27.04204886]
[1740830906949,0.0001,140.8,140.79,25.04204886]
[1740830907463,0.0001,140.8,140.79,27.04204886]
[1740830909141,0.0001,140.8,140.79,246.04204886]
[1740830910463,0.063,140.82,140.81,20.0]
[1740830910772,0.063,140.82,140.81,101.0]
[1740830911445,0.063,140.82,140.81,107.3915]
[1740830911773,0.063,140.84,140.82,20.64964886]
[1740830911774,0.0001,140.84,140.82,20.64964886]
[1740830912072,0.0001,140.84,140.82,22.64964886]
[1740830912569,0.0001,140.85,140.84,20.0]
[1740830912875,0.0001,140.85,140.84,267.79914886]
[1740830913671,0.0001,140.85,140.84,274.18934886]
[1740830916654,0.0001,140.89,140.86,2.0]
[1740830916858,0.0001,140.89,140.88,20.0]
[1740830917161,0.0001,140.89,140.88,259.64964886]
[1740830917363,0.03,140.94,140.89,2.0]
[1740830917670,0.03,140.94,140.92,20.0]
[1740830918056,0.03,140.94,140.89,81.0]
[1740830918371,0.03,140.94,140.9,6.3875]
[1740830921281,1.5536,140.93,140.87,6.3888]
[1740830921473,6.42,140.92,140.87,6.3888]
[1740830921778,6.42,140.92,140.86,87.3891]
[1740830927682,6.42,140.92,140.86,103.3624]
[1740830927883,6.42,140.92,140.86,87.3891]
[1740830928773,80.7,140.91,140.84,6.3902]
[1740830929183,80.7,140.91,140.81,0.063]
[1740830929184,18.64964886,140.87,140.81,0.063]